[Event "44th Chess Olympiad Open 2022"]
[Site "Chennai"]
[Date "2022.07.30"]
[Round "2.49"]
[White "Estur, Gavino Aguilar"]
[Black "Kassis, Antoine"]
[Result "0-1"]
[WhiteElo "1598"]
[BlackElo "2202"]
[Annotator "ChessBase"]
[PlyCount "94"]
[EventDate "2022.??.??"]
[TimeControl "60"]

1. e4 {[%emt 0:00:01]} c5 {[%emt 0:00:06]} 2. Nc3 {[%emt 0:00:17]} a6 {[%emt 0:
00:00]} 3. a4 {[%emt 0:00:47]} e6 {[%emt 0:00:17]} 4. Bc4 {[%emt 0:01:12]} Nf6
{[%emt 0:00:57]} 5. e5 {[%emt 0:03:00]} d5 {[%emt 0:03:17]} 6. exd6 {[%emt 0:
00:00]} Bxd6 {[%emt 0:00:21]} 7. d3 {[%emt 0:01:29]} h6 {[%emt 0:02:22]} 8. Nf3
{[%emt 0:01:36]} O-O {[%emt 0:00:35]} 9. O-O {[%emt 0:00:08]} Nc6 {[%emt 0:00:
00]} 10. Ne4 {[%emt 0:03:13]} Nxe4 {[%emt 0:02:31]} 11. dxe4 {[%emt 0:00:19]}
Qc7 {[%emt 0:01:08]} 12. h3 {[%emt 0:00:45]} Rb8 {[%emt 0:11:58]} 13. c3 {
[%emt 0:01:14]} b5 {[%emt 0:00:36]} 14. axb5 {[%emt 0:01:52]} axb5 {[%emt 0:00:
00]} 15. Bd3 {[%emt 0:02:49]} Rd8 {[%emt 0:02:20]} 16. Qe2 {[%emt 0:00:51]} c4
{[%emt 0:06:42]} 17. Bc2 {[%emt 0:00:59]} Bb7 {[%emt 0:03:46]} 18. Be3 {
[%emt 0:03:25]} Ra8 {[%emt 0:12:16]} 19. Nd4 {[%emt 0:02:07]} Nxd4 {[%emt 0:00:
00]} 20. cxd4 {[%emt 0:02:47]} Bh2+ {[%emt 0:09:52]} 21. Kh1 {[%emt 0:00:39]}
Bf4 {[%emt 0:00:03]} 22. Qg4 {[%emt 0:06:28]} Rxa1 {[%emt 0:04:26]} 23. Rxa1 {
[%emt 0:00:30]} Bxe3 {[%emt 0:00:13]} 24. fxe3 {[%emt 0:00:12]} b4 {[%emt 0:00:
00]} 25. Qe2 {[%emt 0:08:39]} b3 {[%emt 0:07:58]} 26. Bd1 {[%emt 0:07:45]} Bxe4
{[%emt 0:08:33]} 27. Rc1 {[%emt 0:00:27]} Qg3 {[%emt 0:03:54]} 28. Rxc4 {
[%emt 0:00:56]} Qxh3+ {[%emt 0:00:12]} 29. Kg1 {[%emt 0:00:49]} Qg3 {[%emt 0:
00:00]} 30. Bxb3 {[%emt 0:00:39]} Bxg2 {[%emt 0:00:44]} 31. Qf2 {[%emt 0:04:41]
} Qh3 {[%emt 0:03:22]} 32. Qf4 {[%emt 0:06:45]} Bd5 {[%emt 0:01:50]} 33. Kf2 {
[%emt 0:05:08]} Qg2+ {[%emt 0:00:12]} 34. Ke1 {[%emt 0:00:08]} Bxc4 {[%emt 0:
00:00]} 35. Bxc4 {[%emt 0:00:38]} Qxb2 {[%emt 0:01:40]} 36. Be2 {[%emt 0:00:48]
} Rc8 {[%emt 0:00:26]} 37. Kf2 {[%emt 0:01:44]} Rc2 {[%emt 0:00:12]} 38. Qf3 {
[%emt 0:00:12]} Rxe2+ {[%emt 0:00:07]} 39. Qxe2 {[%emt 0:00:05]} Qxe2+ {
[%emt 0:00:05]} 40. Kxe2 {[%emt 0:00:25]} Kf8 {[%emt 0:00:15]} 41. Kf3 {
[%emt 0:30:17]} Ke7 {[%emt 0:30:05]} 42. Kf4 {[%emt 0:04:35]} g5+ {[%emt 0:00:
00]} 43. Kg4 {[%emt 0:00:32]} f5+ {[%emt 0:00:12]} 44. Kh5 {[%emt 0:00:25]} g4
{[%emt 0:00:06]} 45. Kh4 {[%emt 0:00:32]} Kd6 {[%emt 0:00:05]} 46. Kg3 {
[%emt 0:01:34]} Kd5 {[%emt 0:00:08]} 47. Kf4 {[%emt 0:00:19]} h5 {[%emt 0:00:
00]} 0-1

[Event "44th Chess Olympiad Open 2022"]
[Site "Chennai"]
[Date "2022.07.30"]
[Round "2.50"]
[White "Toczek, Grzegorz"]
[Black "Paiva, Donaldo"]
[Result "1/2-1/2"]
[WhiteElo "2287"]
[BlackElo "2191"]
[Annotator "ChessBase"]
[PlyCount "76"]
[EventDate "2022.??.??"]
[TimeControl "60"]

1. e4 {[%emt 0:00:10]} c5 {[%emt 0:00:04]} 2. Nf3 {[%emt 0:00:14]} d6 {[%emt 0:
00:00]} 3. d4 {[%emt 0:00:13]} cxd4 {[%emt 0:00:06]} 4. Qxd4 {[%emt 0:00:13]}
Nc6 {[%emt 0:00:16]} 5. Bb5 {[%emt 0:00:07]} Bd7 {[%emt 0:00:05]} 6. Bxc6 {
[%emt 0:00:18]} Bxc6 {[%emt 0:00:06]} 7. Nc3 {[%emt 0:00:09]} Nf6 {[%emt 0:00:
00]} 8. Bg5 {[%emt 0:00:50]} e6 {[%emt 0:00:06]} 9. O-O-O {[%emt 0:00:32]} Be7
{[%emt 0:00:05]} 10. Qd3 {[%emt 0:01:31]} O-O {[%emt 0:00:28]} 11. Nd4 {
[%emt 0:00:43]} Qa5 {[%emt 0:00:22]} 12. Bd2 {[%emt 0:05:53]} Qc7 {[%emt 0:00:
00]} 13. f4 {[%emt 0:06:59]} Rfd8 {[%emt 0:06:34]} 14. g4 {[%emt 0:08:02]} d5 {
[%emt 0:06:59]} 15. e5 {[%emt 0:00:05]} Nd7 {[%emt 0:05:40]} 16. Qg3 {[%emt 0:
00:00]} Rac8 {[%emt 0:02:59]} 17. f5 {[%emt 0:04:18]} Nxe5 {[%emt 0:03:55]} 18.
fxe6 {[%emt 0:02:40]} Bd6 {[%emt 0:00:06]} 19. Rhf1 {[%emt 0:12:33]} Re8 {
[%emt 0:08:13]} 20. Bf4 {[%emt 0:12:00]} fxe6 {[%emt 0:09:23]} 21. Rde1 {
[%emt 0:00:15]} Nd3+ {[%emt 0:06:30]} 22. cxd3 {[%emt 0:02:49]} e5 {[%emt 0:00:
00]} 23. Nf5 {[%emt 0:02:38]} exf4 {[%emt 0:01:01]} 24. Qf2 {[%emt 0:00:04]}
Be5 {[%emt 0:06:43]} 25. d4 {[%emt 0:00:10]} Bf6 {[%emt 0:00:06]} 26. h4 {
[%emt 0:02:39]} Bd7 {[%emt 0:10:01]} 27. Rxe8+ {[%emt 0:00:59]} Rxe8 {[%emt 0:
00:00]} 28. Qxf4 {[%emt 0:00:24]} Qxf4+ {[%emt 0:03:25]} 29. Rxf4 {[%emt 0:00:
00]} Bxf5 {[%emt 0:03:12]} 30. gxf5 {[%emt 0:03:48]} Rd8 {[%emt 0:01:48]} 31.
Kc2 {[%emt 0:01:39]} h5 {[%emt 0:00:25]} 32. Kd3 {[%emt 0:02:02]} Kh7 {[%emt 0:
00:00]} 33. Rf1 {[%emt 0:06:22]} Kh6 {[%emt 0:00:29]} 34. Rh1 {[%emt 0:00:51]}
Rd7 {[%emt 0:01:21]} 35. Ne2 {[%emt 0:03:21]} Re7 {[%emt 0:01:16]} 36. Nc3 {
[%emt 0:00:05]} Rd7 {[%emt 0:00:06]} 37. Ne2 {[%emt 0:00:32]} Re7 {[%emt 0:00:
00]} 38. Nc3 {[%emt 0:00:09]} Rd7 {[%emt 0:07:15]} 1/2-1/2

[Event "44th Chess Olympiad Open 2022"]
[Site "Chennai"]
[Date "2022.07.30"]
[Round "2.50"]
[White "Kett, Tim"]
[Black "Napoleao, Lourenco"]
[Result "1/2-1/2"]
[WhiteElo "2197"]
[BlackElo "1778"]
[Annotator "RC"]
[PlyCount "110"]
[EventDate "2022.??.??"]
[TimeControl "60"]

1. e4 {[%emt 0:00:13]} c5 {[%emt 0:00:10]} 2. Nf3 {[%emt 0:00:13]} d6 {[%emt 0:
00:00]} 3. d4 {[%emt 0:00:07]} cxd4 {[%emt 0:00:04]} 4. Nxd4 {[%emt 0:00:06]}
Nf6 {[%emt 0:00:09]} 5. Nc3 {[%emt 0:00:09]} g6 {[%emt 0:00:36]} 6. Be3 {
[%emt 0:00:27]} Bg7 {[%emt 0:00:06]} 7. f3 {[%emt 0:00:19]} O-O {[%emt 0:00:09]
} 8. Qd2 {[%emt 0:00:07]} Nc6 {[%emt 0:00:08]} 9. Bc4 {[%emt 0:00:24]} Nxd4 {
[%emt 0:06:52]} 10. Bxd4 {[%emt 0:00:26]} Be6 {[%emt 0:00:03]} 11. Bxe6 {
[%emt 0:03:13]} fxe6 {[%emt 0:00:02]} 12. O-O-O {[%emt 0:02:03]} Qa5 {[%emt 0:
00:00]} 13. Kb1 {[%emt 0:04:05]} Rac8 {[%emt 0:11:05]} 14. Rhe1 {[%emt 0:20:20]
} Nd7 {[%emt 0:00:14]} 15. Bxg7 {[%emt 0:06:25]} Kxg7 {[%emt 0:00:03]} 16. Ne2
{[%emt 0:05:32]} Qxd2 {[%emt 0:00:12]} 17. Rxd2 {[%emt 0:00:05]} Kf7 {[%emt 0:
00:00]} 18. b3 {[%emt 0:04:47]} g5 {[%emt 0:06:30]} 19. c4 {[%emt 0:01:44]} Rc5
{[%emt 0:05:20]} 20. Nc1 {[%emt 0:10:49]} Ne5 {[%emt 0:06:19]} 21. Nd3 {
[%emt 0:00:26]} Nxd3 {[%emt 0:00:02]} 22. Rxd3 {[%emt 0:00:07]} Rfc8 {[%emt 0:
00:00]} 23. Re2 {[%emt 0:02:41]} a6 {[%emt 0:04:51]} 24. Kb2 {[%emt 0:02:59]}
h5 {[%emt 0:10:42]} 25. g3 {[%emt 0:18:53]} Rh8 {[%emt 0:19:19]} 26. f4 {
[%emt 0:05:52]} gxf4 {[%emt 0:04:19]} 27. gxf4 {[%emt 0:00:05]} Rg8 {[%emt 0:
00:00]} 28. Rg3 {[%emt 0:00:18]} Rg4 {[%emt 0:02:02]} 29. Rxg4 {[%emt 0:02:25]}
hxg4 {[%emt 0:00:02]} 30. Rg2 {[%emt 0:00:27]} Rh5 {[%emt 0:00:12]} 31. Kc3 {
[%emt 0:01:09]} b6 {[%emt 0:02:19]} 32. Kd4 {[%emt 0:02:26]} Kf6 {[%emt 0:00:
00]} 33. b4 {[%emt 0:03:03]} a5 {[%emt 0:01:31]} 34. bxa5 {[%emt 0:03:01]} Rxa5
{[%emt 0:02:30]} 35. Rxg4 {[%emt 0:00:21]} e5+ {[%emt 0:00:57]} 36. fxe5+ {
[%emt 0:00:30]} dxe5+ {[%emt 0:00:01]} 37. Kc3 {[%emt 0:00:17]} Rxa2 {[%emt 0:
00:00]} 38. Rh4 {[%emt 0:01:03]} Kg6 {[%emt 0:02:11]} 39. Rh8 {[%emt 0:00:28]}
Kg7 {[%emt 0:01:44]} 40. Rb8 {[%emt 0:00:46]} Rxh2 {[%emt 0:01:06]} 41. Rxb6 {
[%emt 0:30:12]} Rh3+ {[%emt 0:08:43]} 42. Kb4 {[%emt 0:00:00]} Re3 {[%emt 0:00:
00]} 43. c5 {[%emt 0:00:00]} Rxe4+ {[%emt 0:01:46]} 44. Kb5 {[%emt 0:00:00]}
Kf7 {[%emt 0:03:45]} 45. Kc6 {[%emt 0:00:00]} Re1 {[%emt 0:02:02]} 46. Kb7 {
[%emt 0:00:00]} Rc1 {[%emt 0:03:13]} 47. c6 {[%emt 0:00:00]} Ke6 {[%emt 0:00:
00]} 48. Rb2 {[%emt 0:00:00]} e4 {[%emt 0:03:42]} 49. c7 {[%emt 0:00:00]} Kd5 {
[%emt 0:03:58]} 50. c8=Q {[%emt 0:00:00]} Rxc8 {[%emt 0:00:18]} 51. Kxc8 {
[%emt 0:00:00]} e3 {[%emt 0:00:23]} 52. Kd7 {[%emt 0:00:00]} Kd4 {[%emt 0:00:
00]} 53. Kxe7 {[%emt 0:00:00]} Kd3 {[%emt 0:00:10]} 54. Ke6 {[%emt 0:00:00]} e2
{[%emt 0:00:04]} 55. Rxe2 {[%emt 0:00:00]} Kxe2 {[%emt 0:00:15]} 1/2-1/2

[Event "44th Chess Olympiad Open 2022"]
[Site "Chennai"]
[Date "2022.07.30"]
[Round "2.50"]
[White "Vasco Mateus Felizardo Viagei"]
[Black "Blackburn, Jonathan L B"]
[Result "0-1"]
[WhiteElo "1852"]
[BlackElo "2176"]
[Annotator "ChessBase"]
[PlyCount "66"]
[EventDate "2022.??.??"]
[TimeControl "60"]

1. e4 {[%emt 0:00:08]} e6 {[%emt 0:00:07]} 2. d4 {[%emt 0:00:07]} d5 {[%emt 0:
00:00]} 3. Nc3 {[%emt 0:00:48]} Bb4 {[%emt 0:00:07]} 4. e5 {[%emt 0:00:05]} b6
{[%emt 0:00:32]} 5. Bb5+ {[%emt 0:01:52]} c6 {[%emt 0:00:10]} 6. Bd3 {[%emt 0:
00:00]} Ba6 {[%emt 0:02:30]} 7. Nge2 {[%emt 0:02:55]} Qc8 {[%emt 0:13:36]} 8.
O-O {[%emt 0:09:14]} Bf8 {[%emt 0:07:23]} 9. f4 {[%emt 0:07:22]} Ne7 {[%emt 0:
00:00]} 10. Kh1 {[%emt 0:00:36]} h5 {[%emt 0:00:56]} 11. Be3 {[%emt 0:09:15]}
Bxd3 {[%emt 0:02:25]} 12. Qxd3 {[%emt 0:00:08]} Qa6 {[%emt 0:01:19]} 13. Qd2 {
[%emt 0:00:06]} Nf5 {[%emt 0:00:42]} 14. Bf2 {[%emt 0:00:07]} c5 {[%emt 0:00:
00]} 15. Rad1 {[%emt 0:13:45]} Nc6 {[%emt 0:03:55]} 16. a4 {[%emt 0:16:50]} Rc8
{[%emt 0:08:54]} 17. dxc5 {[%emt 0:05:13]} bxc5 {[%emt 0:01:15]} 18. Ne4 {
[%emt 0:05:19]} Qc4 {[%emt 0:11:08]} 19. N2c3 {[%emt 0:08:52]} Ncd4 {[%emt 0:
00:00]} 20. b3 {[%emt 0:02:37]} Qb4 {[%emt 0:03:11]} 21. Ng5 {[%emt 0:01:41]}
Be7 {[%emt 0:03:36]} 22. Be1 {[%emt 0:05:58]} a6 {[%emt 0:07:39]} 23. Qf2 {
[%emt 0:00:40]} Qb7 {[%emt 0:01:25]} 24. a5 {[%emt 0:01:35]} h4 {[%emt 0:01:28]
} 25. Qd2 {[%emt 0:01:36]} Qc7 {[%emt 0:04:37]} 26. Na4 {[%emt 0:01:41]} Bxg5 {
[%emt 0:00:24]} 27. fxg5 {[%emt 0:00:15]} Qxe5 {[%emt 0:00:09]} 28. Nb6 {
[%emt 0:00:32]} Rd8 {[%emt 0:01:02]} 29. Bf2 {[%emt 0:01:10]} Ng3+ {[%emt 0:00:
00]} 30. Bxg3 {[%emt 0:00:19]} hxg3 {[%emt 0:00:02]} 31. h3 {[%emt 0:00:32]}
Qe4 {[%emt 0:00:18]} 32. Rde1 {[%emt 0:00:22]} Rxh3+ {[%emt 0:00:10]} 33. Kg1 {
[%emt 0:00:28]} Rh1+ {[%emt 0:00:03]} 0-1

[Event "44th Chess Olympiad Open 2022"]
[Site "Chennai"]
[Date "2022.07.30"]
[Round "2.50"]
[White "Rafael Chirinza"]
[Black "Pleasants, Allan J"]
[Result "1/2-1/2"]
[WhiteElo "1725"]
[BlackElo "2024"]
[Annotator "NA RC"]
[PlyCount "112"]
[EventDate "2022.??.??"]
[TimeControl "60"]

1. d4 {[%emt 0:00:00]} Nf6 {[%emt 0:00:28]} 2. Nf3 {[%emt 0:00:00]} g6 {
[%emt 0:00:14]} 3. Bf4 {[%emt 0:02:08]} Bg7 {[%emt 0:00:25]} 4. e3 {[%emt 0:00:
00]} O-O {[%emt 0:00:33]} 5. h3 {[%emt 0:00:53]} d6 {[%emt 0:01:14]} 6. Nbd2 {
[%emt 0:01:31]} Nbd7 {[%emt 0:00:48]} 7. Bc4 {[%emt 0:01:24]} Qe8 {[%emt 0:00:
00]} 8. Bh2 {[%emt 0:02:28]} a6 {[%emt 0:07:15]} 9. a4 {[%emt 0:01:58]} b6 {
[%emt 0:02:42]} 10. c3 {[%emt 0:03:28]} Bb7 {[%emt 0:01:52]} 11. Qb3 {[%emt 0:
00:00]} e5 {[%emt 0:08:48]} 12. O-O {[%emt 0:04:28]} Qe7 {[%emt 0:01:52]} 13.
Rfd1 {[%emt 0:02:02]} h6 {[%emt 0:06:14]} 14. Rac1 {[%emt 0:03:58]} Rae8 {
[%emt 0:03:04]} 15. Qa2 {[%emt 0:07:48]} e4 {[%emt 0:06:29]} 16. Ne1 {[%emt 0:
00:00]} d5 {[%emt 0:01:24]} 17. Bf1 {[%emt 0:00:19]} c5 {[%emt 0:02:35]} 18.
Qa3 {[%emt 0:02:22]} Qe6 {[%emt 0:03:46]} 19. c4 {[%emt 0:10:03]} Rc8 {[%emt 0:
00:00]} 20. cxd5 {[%emt 0:00:52]} Nxd5 {[%emt 0:01:28]} 21. dxc5 {[%emt 0:00:
00]} Rxc5 {[%emt 0:04:14]} 22. Nb3 {[%emt 0:01:22]} Rxc1 {[%emt 0:01:46]} 23.
Nxc1 {[%emt 0:01:33]} Rc8 {[%emt 0:05:08]} 24. Ne2 Ne5 {[%emt 0:04:27]} 25. Nd4
{[%emt 0:01:09]} Qe8 {[%emt 0:00:20]} 26. Qb3 Kh7 {[%emt 0:09:21]} 27. Nec2 Rd8
{[%emt 0:11:18]} 28. Na3 {[%emt 0:02:25]} Nc6 {[%emt 0:03:49]} 29. Nac2 {
[%emt 0:06:31]} Nxd4 {[%emt 0:01:27]} 30. Nxd4 {[%emt 0:01:28]} Qe7 {[%emt 0:
00:00]} 31. Bc4 {[%emt 0:01:40]} Be5 {[%emt 0:01:06]} 32. Bxe5 {[%emt 0:02:25]}
Qxe5 {[%emt 0:01:38]} 33. Bxd5 {[%emt 0:01:17]} Bxd5 {[%emt 0:00:51]} 34. Qxb6
{[%emt 0:01:02]} Rb8 {[%emt 0:00:00]} 35. Nc6 {[%emt 0:04:18]} Bxc6 {[%emt 0:
00:00]} 36. Qxc6 {[%emt 0:00:13]} Rxb2 {[%emt 0:00:00]} 37. Qxa6 {[%emt 0:00:
00]} Qf5 {[%emt 0:00:00]} 38. Qf1 {[%emt 0:00:58]} Qf6 {[%emt 0:00:00]} 39. Rd4
{[%emt 0:01:55]} Qb6 {[%emt 0:00:00]} 40. Kh2 {[%emt 0:02:04]} Qf6 {[%emt 0:00:
00]} 41. Kg1 {[%emt 0:31:04]} Qb6 {[%emt 0:28:05]} 42. g3 {[%emt 0:00:32]} Rb1
{[%emt 0:00:00]} 43. Rd1 {[%emt 0:00:00]} Rb2 {[%emt 0:00:00]} 44. Qc4 {
[%emt 0:00:00]} Qf6 {[%emt 0:00:00]} 45. Rf1 {[%emt 0:00:00]} Qf5 {[%emt 0:00:
00]} 46. Qd4 {[%emt 0:00:00]} Ra2 {[%emt 0:00:00]} 47. Qc4 {[%emt 0:00:00]} Rb2
{[%emt 0:00:00]} 48. Qc3 {[%emt 0:00:00]} Ra2 {[%emt 0:00:00]} 49. Qb3 {
[%emt 0:00:00]} Rd2 {[%emt 0:00:00]} 50. a5 {[%emt 0:00:00]} Rd7 {[%emt 0:00:
00]} 51. Qb6 {[%emt 0:00:00]} h5 {[%emt 0:00:00]} 52. a6 {[%emt 0:00:00]} h4 {
[%emt 0:00:00]} 53. a7 {[%emt 0:00:00]} Qxh3 {[%emt 0:00:43]} 54. Qb8 {[%emt 0:
00:00]} hxg3 {[%emt 0:01:19]} 55. fxg3 {[%emt 0:00:00]} Rxa7 {[%emt 0:00:15]}
56. Qxa7 {[%emt 0:00:00]} Qxg3+ {[%emt 0:00:09]} 1/2-1/2

[Event "44th Chess Olympiad Open 2022"]
[Site "Chennai"]
[Date "2022.07.30"]
[Round "2.51"]
[White "Eiti, Bashir"]
[Black "Al Ibrahim, Abdulrahman"]
[Result "1-0"]
[WhiteElo "2337"]
[BlackElo "1822"]
[Annotator "ChessBase"]
[PlyCount "61"]
[EventDate "2022.??.??"]
[TimeControl "60"]

1. d4 {[%emt 0:00:06]} d5 {[%emt 0:00:07]} 2. Bf4 {[%emt 0:00:34]} Nf6 {
[%emt 0:01:16]} 3. e3 {[%emt 0:00:07]} e6 {[%emt 0:01:44]} 4. Nf3 {[%emt 0:00:
00]} c5 {[%emt 0:00:28]} 5. c3 {[%emt 0:00:06]} Bd6 {[%emt 0:00:50]} 6. Bb5+ {
[%emt 0:15:19]} Nc6 {[%emt 0:06:09]} 7. Qa4 {[%emt 0:01:03]} Bxf4 {[%emt 0:00:
00]} 8. exf4 {[%emt 0:01:13]} Qb6 {[%emt 0:06:49]} 9. dxc5 {[%emt 0:03:29]}
Qxc5 {[%emt 0:03:44]} 10. Nbd2 {[%emt 0:01:30]} Bd7 {[%emt 0:06:41]} 11. O-O {
[%emt 0:01:58]} O-O {[%emt 0:16:20]} 12. Rad1 {[%emt 0:06:24]} Rfd8 {[%emt 0:
00:00]} 13. Bxc6 {[%emt 0:09:11]} bxc6 {[%emt 0:07:14]} 14. Ne5 {[%emt 0:10:48]
} Qb6 {[%emt 0:01:01]} 15. Qa3 {[%emt 0:05:56]} c5 {[%emt 0:01:05]} 16. c4 {
[%emt 0:01:19]} a5 {[%emt 0:08:35]} 17. Nb3 {[%emt 0:04:32]} Be8 {[%emt 0:00:
00]} 18. Rc1 {[%emt 0:11:43]} Ne4 {[%emt 0:04:45]} 19. cxd5 {[%emt 0:07:09]}
Rxd5 {[%emt 0:00:21]} 20. Nc4 {[%emt 0:01:03]} Qb5 {[%emt 0:03:53]} 21. Rfe1 {
[%emt 0:01:56]} Nf6 {[%emt 0:01:39]} 22. Ne3 {[%emt 0:00:33]} Rdd8 {[%emt 0:00:
00]} 23. Qxc5 {[%emt 0:02:21]} Qa4 {[%emt 0:00:39]} 24. Qc4 {[%emt 0:05:22]}
Qxa2 {[%emt 0:02:03]} 25. Ra1 {[%emt 0:00:19]} Qxb2 {[%emt 0:00:08]} 26. Reb1 {
[%emt 0:00:26]} Bb5 {[%emt 0:02:00]} 27. Qxb5 {[%emt 0:00:37]} Qc3 {[%emt 0:00:
00]} 28. Rc1 {[%emt 0:01:18]} Qb2 {[%emt 0:00:47]} 29. Nd1 {[%emt 0:02:46]}
Rxd1+ {[%emt 0:00:29]} 30. Rxd1 {[%emt 0:00:05]} Ng4 {[%emt 0:00:23]} 31. Rd2 {
[%emt 0:00:29]} 1-0

[Event "44th Chess Olympiad Open 2022"]
[Site "Chennai"]
[Date "2022.07.30"]
[Round "2.51"]
[White "Al-Hajiri, Bader"]
[Black "Chekh Adm Khedr, Aram"]
[Result "0-1"]
[WhiteElo "2011"]
[BlackElo "2147"]
[Annotator "NA"]
[PlyCount "72"]
[EventDate "2022.??.??"]
[TimeControl "60"]

1. d4 {[%emt 0:00:07]} d5 {[%emt 0:00:04]} 2. c4 {[%emt 0:00:12]} dxc4 {
[%emt 0:00:05]} 3. e4 {[%emt 0:00:45]} Nf6 {[%emt 0:03:29]} 4. f3 {[%emt 0:00:
00]} g6 {[%emt 0:20:04]} 5. Bxc4 {[%emt 0:04:46]} Bg7 {[%emt 0:01:26]} 6. Ne2 {
[%emt 0:00:53]} O-O {[%emt 0:00:06]} 7. Be3 {[%emt 0:00:29]} a6 {[%emt 0:03:54]
} 8. a3 {[%emt 0:01:51]} b5 {[%emt 0:10:03]} 9. Ba2 {[%emt 0:01:09]} Bb7 {
[%emt 0:00:08]} 10. Nbc3 {[%emt 0:00:38]} e6 {[%emt 0:02:15]} 11. Qd2 {[%emt 0:
00:00]} Nbd7 {[%emt 0:01:23]} 12. O-O {[%emt 0:05:25]} Qe7 {[%emt 0:00:44]} 13.
Rac1 {[%emt 0:02:17]} Rac8 {[%emt 0:02:03]} 14. Bg5 {[%emt 0:05:35]} e5 {
[%emt 0:01:54]} 15. Nd5 {[%emt 0:01:21]} Bxd5 {[%emt 0:04:14]} 16. exd5 {
[%emt 0:02:30]} Rfe8 {[%emt 0:16:07]} 17. Rfe1 {[%emt 0:03:47]} Qf8 {[%emt 0:
00:00]} 18. dxe5 {[%emt 0:07:32]} Nxe5 {[%emt 0:00:54]} 19. Nd4 {[%emt 0:00:13]
} Nfd7 {[%emt 0:03:38]} 20. Ne6 {[%emt 0:01:55]} Qd6 {[%emt 0:01:32]} 21. f4 {
[%emt 0:12:23]} Qb6+ {[%emt 0:01:03]} 22. Kh1 {[%emt 0:01:24]} Ng4 {[%emt 0:00:
00]} 23. h3 {[%emt 0:01:40]} Nf2+ {[%emt 0:02:23]} 24. Kh2 {[%emt 0:00:07]}
fxe6 {[%emt 0:02:08]} 25. dxe6 {[%emt 0:01:21]} Nf6 {[%emt 0:00:13]} 26. e7+ {
[%emt 0:05:06]} Kh8 {[%emt 0:00:04]} 27. Bf7 {[%emt 0:00:04]} N2e4 {[%emt 0:00:
00]} 28. Rxe4 {[%emt 0:01:24]} Nxe4 {[%emt 0:00:06]} 29. Qd7 {[%emt 0:00:06]}
Nf6 {[%emt 0:06:16]} 30. Bxe8 {[%emt 0:01:07]} Nxd7 {[%emt 0:00:24]} 31. Bxd7 {
[%emt 0:00:40]} Rb8 {[%emt 0:00:29]} 32. Rd1 {[%emt 0:01:42]} Bf6 {[%emt 0:00:
00]} 33. e8=Q+ {[%emt 0:02:37]} Rxe8 {[%emt 0:00:07]} 34. Bxe8 {[%emt 0:00:08]}
Bxg5 {[%emt 0:00:13]} 35. fxg5 {[%emt 0:00:05]} Qe3 {[%emt 0:00:06]} 36. Bc6 {
[%emt 0:02:03]} Qxg5 {[%emt 0:00:07]} 0-1

[Event "44th Chess Olympiad Open 2022"]
[Site "Chennai"]
[Date "2022.07.30"]
[Round "2.51"]
[White "Alhejab, Meshal"]
[Black "Koniahli, Malek."]
[Result "*"]
[WhiteElo "1732"]
[BlackElo "2238"]
[Annotator "RC"]
[PlyCount "150"]
[EventDate "2022.??.??"]
[TimeControl "60"]

1. e4 {[%emt 0:00:05]} c5 {[%emt 0:00:16]} 2. Nf3 {[%emt 0:00:17]} Nc6 {
[%emt 0:00:07]} 3. Bb5 {[%emt 0:00:05]} g6 {[%emt 0:00:26]} 4. Bxc6 {[%emt 0:
00:00]} dxc6 {[%emt 0:00:02]} 5. d3 {[%emt 0:00:44]} Bg7 {[%emt 0:00:06]} 6.
Nc3 {[%emt 0:00:49]} c4 {[%emt 0:00:24]} 7. O-O {[%emt 0:05:57]} cxd3 {[%emt 0:
00:00]} 8. cxd3 {[%emt 0:00:03]} e5 {[%emt 0:03:33]} 9. h3 {[%emt 0:00:52]} f6
{[%emt 0:11:31]} 10. d4 {[%emt 0:05:18]} exd4 {[%emt 0:00:32]} 11. Nxd4 {
[%emt 0:00:59]} Nh6 {[%emt 0:05:12]} 12. Be3 {[%emt 0:04:29]} Nf7 {[%emt 0:00:
00]} 13. f4 {[%emt 0:04:07]} O-O {[%emt 0:02:24]} 14. Qc2 {[%emt 0:07:14]} Qe7
{[%emt 0:02:07]} 15. Rfe1 {[%emt 0:03:18]} Re8 {[%emt 0:01:02]} 16. Rad1 {
[%emt 0:02:21]} Bd7 {[%emt 0:07:56]} 17. a4 {[%emt 0:03:13]} Rad8 {[%emt 0:00:
00]} 18. Bf2 {[%emt 0:05:41]} Bh6 {[%emt 0:02:16]} 19. Bg3 {[%emt 0:10:38]} Bc8
{[%emt 0:05:00]} 20. Kh1 {[%emt 0:03:48]} Qc5 {[%emt 0:11:01]} 21. Nf3 {
[%emt 0:17:06]} Qh5 {[%emt 0:02:05]} 22. Nh2 {[%emt 0:07:07]} Be6 {[%emt 0:00:
00]} 23. Qf2 {[%emt 0:01:51]} b6 {[%emt 0:02:33]} 24. Bh4 {[%emt 0:02:44]} Bg7
{[%emt 0:03:43]} 25. g4 {[%emt 0:03:58]} Qc5 {[%emt 0:01:20]} 26. Qxc5 {
[%emt 0:01:20]} bxc5 {[%emt 0:00:03]} 27. Nf3 {[%emt 0:02:08]} Bc4 {[%emt 0:00:
00]} 28. Kg2 {[%emt 0:02:19]} Rb8 {[%emt 0:04:03]} 29. Rd2 {[%emt 0:01:08]}
Red8 {[%emt 0:01:22]} 30. Red1 {[%emt 0:01:16]} Re8 {[%emt 0:05:12]} 31. Rc1 {
[%emt 0:01:42]} h6 {[%emt 0:00:47]} 32. Bf2 {[%emt 0:01:03]} Bf8 {[%emt 0:00:
00]} 33. e5 {[%emt 0:01:18]} f5 {[%emt 0:02:04]} 34. gxf5 {[%emt 0:00:51]} gxf5
{[%emt 0:00:00]} 35. Nh4 {[%emt 0:00:34]} Be6 {[%emt 0:05:21]} 36. Ng6 {
[%emt 0:00:52]} a6 {[%emt 0:00:13]} 37. Nxf8 {[%emt 0:00:41]} Rxf8 {[%emt 0:00:
00]} 38. Bxc5 {[%emt 0:00:17]} Rfd8 {[%emt 0:00:01]} 39. Rcd1 {[%emt 0:00:55]}
Re8 {[%emt 0:01:54]} 40. Kf3 {[%emt 0:00:34]} Kh7 {[%emt 0:00:33]} 41. a5 {
[%emt 0:30:34]} Rg8 {[%emt 0:01:41]} 42. b4 {[%emt 0:00:29]} Rg6 {[%emt 0:00:
00]} 43. Rg2 {[%emt 0:00:25]} Rxg2 {[%emt 0:00:28]} 44. Kxg2 {[%emt 0:00:02]}
Rg8+ {[%emt 0:00:00]} 45. Kf2 {[%emt 0:00:51]} Rd8 {[%emt 0:00:00]} 46. Rxd8 {
[%emt 0:00:00]} Nxd8 {[%emt 0:00:00]} 47. Bb6 {[%emt 0:00:00]} Nb7 {[%emt 0:00:
00]} 48. Ne2 {[%emt 0:00:00]} Kg6 {[%emt 0:00:00]} 49. Nd4 {[%emt 0:00:00]} Bd5
{[%emt 0:00:00]} 50. Kg3 {[%emt 0:00:00]} Be4 {[%emt 0:00:00]} 51. Kh4 {
[%emt 0:00:00]} Bd5 {[%emt 0:00:00]} 52. Kg3 {[%emt 0:02:11]} Be4 {[%emt 0:00:
00]} 53. Ne6 {[%emt 0:00:00]} Bd5 {[%emt 0:00:00]} 54. Nc7 {[%emt 0:00:00]} Bc4
{[%emt 0:00:00]} 55. Kh4 {[%emt 0:00:00]} Be2 {[%emt 0:00:00]} 56. Ne6 {
[%emt 0:00:00]} Bc4 {[%emt 0:00:00]} 57. Nf8+ {[%emt 0:00:00]} Kf7 {[%emt 0:00:
00]} 58. Nd7 {[%emt 0:02:34]} Kg6 {[%emt 0:00:00]} 59. e6 {[%emt 0:03:10]} Bb5
{[%emt 0:00:00]} 60. Bc7 {[%emt 0:01:39]} Ba4 {[%emt 0:00:00]} 61. e7 {[%emt 0:
00:00]} Kf7 {[%emt 0:00:00]} 62. Bd8 {[%emt 0:00:39]} Nd6 {[%emt 0:00:00]} 63.
Nf6 {[%emt 0:00:39]} Bd1 {[%emt 0:00:00]} 64. Nd7 {[%emt 0:00:33]} Ba4 {
[%emt 0:00:45]} 65. Kh5 {[%emt 0:00:27]} Ne4 {[%emt 0:00:00]} 66. Kxh6 {
[%emt 0:00:24]} Nf2 {[%emt 0:00:03]} 67. Nc5 {[%emt 0:00:43]} Bb5 {[%emt 0:00:
00]} 68. Nb7 {[%emt 0:00:26]} Ne4 {[%emt 0:00:27]} 69. h4 {[%emt 0:00:26]} Be2
{[%emt 0:00:30]} 70. Nc5 {[%emt 0:00:34]} Bb5 {[%emt 0:01:44]} 71. h5 {[%emt 0:
00:00]} Be2 {[%emt 0:00:08]} 72. Ne6 {[%emt 0:00:32]} Nf6 {[%emt 0:01:07]} 73.
Nc7 {[%emt 0:00:38]} Bd3 {[%emt 0:01:40]} 74. Kg5 {[%emt 0:00:23]} Nh7+ {
[%emt 0:00:13]} 75. Kh4 {[%emt 0:00:07]} Nf6 {[%emt 0:00:01]} *